[Event "*** Titled Tuesday Blitz"]
[Site "Chess.com"]
[Date "2019.06.04"]
[Round "2"]
[White "jefferyx"]
[Black "Philosopherrr"]
[Result "1-0"]
[WhiteElo "2892"]
[BlackElo "2359"]
[TimeControl "180+2"]
[EndTime "13:22:25 PDT"]
[Termination "jefferyx won by resignation"]

1. d4 {[%clk 0:03:01.9]} 1... Nf6 {[%clk 0:02:58.3]} 2. c4 {[%clk 0:03:03.1]}
2... e6 {[%clk 0:02:57]} 3. Nc3 {[%clk 0:03:04.2]} 3... c5 {[%clk 0:02:56.4]} 4.
d5 {[%clk 0:03:05.3]} 4... exd5 {[%clk 0:02:57.5]} 5. cxd5 {[%clk 0:03:07.2]}
5... d6 {[%clk 0:02:59.1]} 6. Nf3 {[%clk 0:03:08.8]} 6... g6 {[%clk 0:02:57.5]}
7. Nd2 {[%clk 0:03:10.2]} 7... Bg7 {[%clk 0:02:57.4]} 8. e4 {[%clk 0:03:11.9]}
8... O-O {[%clk 0:02:58.7]} 9. Be2 {[%clk 0:03:13.6]} 9... Re8 {[%clk
0:02:59.2]} 10. O-O {[%clk 0:03:15.2]} 10... Nbd7 {[%clk 0:03:00.4]} 11. Re1
{[%clk 0:03:16.2]} 11... a6 {[%clk 0:03:00.6]} 12. a4 {[%clk 0:03:17.2]} 12...
Ne5 {[%clk 0:02:59.8]} 13. Nf1 {[%clk 0:03:18.5]} 13... Rb8 {[%clk 0:02:56.7]}
14. Ne3 {[%clk 0:03:08.1]} 14... Qc7 {[%clk 0:02:49.7]} 15. Bd2 {[%clk
0:02:40.1]} 15... h5 {[%clk 0:02:25.4]} 16. h3 {[%clk 0:02:40.6]} 16... Bh6
{[%clk 0:02:03.3]} 17. Rc1 {[%clk 0:02:38.3]} 17... Qe7 {[%clk 0:01:57.6]} 18.
Qc2 {[%clk 0:02:20.3]} 18... Kh7 {[%clk 0:01:53.3]} 19. Rf1 {[%clk 0:02:16.7]}
19... Bf4 {[%clk 0:01:51.8]} 20. Nf5 {[%clk 0:02:14.3]} 20... Bxf5 {[%clk
0:01:51.9]} 21. Bxf4 {[%clk 0:02:15.8]} 21... Bd7 {[%clk 0:01:46.5]} 22. Bg5
{[%clk 0:02:17]} 22... Bc8 {[%clk 0:01:17.7]} 23. f4 {[%clk 0:02:06.8]} 23...
Ned7 {[%clk 0:01:18.3]} 24. Rce1 {[%clk 0:02:08.4]} 24... Qd8 {[%clk 0:00:59.8]}
25. e5 {[%clk 0:01:47.7]} 25... dxe5 {[%clk 0:01:00.5]} 26. Ne4 {[%clk
0:01:40.3]} 26... c4 {[%clk 0:00:32.9]} 27. Nxf6+ {[%clk 0:01:30.5]} 27... Nxf6
{[%clk 0:00:28.8]} 28. fxe5 {[%clk 0:01:32.1]} 28... Qb6+ {[%clk 0:00:28.9]} 29.
Kh1 {[%clk 0:01:33.8]} 29... Nxd5 {[%clk 0:00:28.1]} 30. Rxf7+ {[%clk
0:01:34.9]} 30... Kg8 {[%clk 0:00:29.5]} 31. Rf6 {[%clk 0:01:19.8]} 31... Bf5
{[%clk 0:00:20.8]} 32. Rxb6 {[%clk 0:01:13.7]} 32... Bxc2 {[%clk 0:00:21]} 33.
Bxc4 {[%clk 0:01:15.4]} 33... Rbd8 {[%clk 0:00:16.9]} 34. Bxd8 {[%clk
0:01:16.4]} 34... Rxd8 {[%clk 0:00:18.3]} 35. Rd6 {[%clk 0:01:17.6]} 35... Rxd6
{[%clk 0:00:16]} 36. exd6 {[%clk 0:01:19.5]} 1-0

[Event "*** Titled Tuesday Blitz"]
[Site "Chess.com"]
[Date "2019.06.04"]
[Round "2"]
[White "LawrenceTrent"]
[Black "ChessWeebs"]
[Result "0-1"]
[WhiteElo "2692"]
[BlackElo "2770"]
[TimeControl "180+2"]
[EndTime "13:22:26 PDT"]
[Termination "ChessWeebs won by resignation"]

1. e4 {[%clk 0:03:01.9]} 1... c6 {[%clk 0:03:00.6]} 2. Ne2 {[%clk 0:03:02.1]}
2... d5 {[%clk 0:03:01.4]} 3. e5 {[%clk 0:03:02.8]} 3... Bf5 {[%clk 0:02:58.9]}
4. Nd4 {[%clk 0:02:58.6]} 4... Bg6 {[%clk 0:02:59.9]} 5. e6 {[%clk 0:02:59.9]}
5... Nf6 {[%clk 0:02:55]} 6. Nc3 {[%clk 0:02:59.3]} 6... fxe6 {[%clk 0:02:50.9]}
7. Nxe6 {[%clk 0:02:58.9]} 7... Qc8 {[%clk 0:02:52.5]} 8. Nxf8 {[%clk 0:03:00]}
8... Rxf8 {[%clk 0:02:53.6]} 9. d4 {[%clk 0:03:01.6]} 9... Kf7 {[%clk
0:02:52.9]} 10. Bd3 {[%clk 0:02:55.4]} 10... Bxd3 {[%clk 0:02:52.7]} 11. Qxd3
{[%clk 0:02:45.3]} 11... Nbd7 {[%clk 0:02:44.6]} 12. Bf4 {[%clk 0:02:41.8]}
12... Re8 {[%clk 0:02:41.2]} 13. O-O {[%clk 0:02:37.3]} 13... e5 {[%clk
0:02:40.5]} 14. dxe5 {[%clk 0:02:37.5]} 14... Nxe5 {[%clk 0:02:42.4]} 15. Bxe5
{[%clk 0:02:38.4]} 15... Rxe5 {[%clk 0:02:44.3]} 16. Rae1 {[%clk 0:02:39.8]}
16... Qe6 {[%clk 0:02:42.9]} 17. Rxe5 {[%clk 0:02:38.4]} 17... Qxe5 {[%clk
0:02:44.8]} 18. Qd2 {[%clk 0:02:24.2]} 18... Re8 {[%clk 0:02:43.9]} 19. h3
{[%clk 0:02:20.3]} 19... d4 {[%clk 0:02:40.7]} 20. Nb1 {[%clk 0:02:13.5]} 20...
Nd5 {[%clk 0:02:28.4]} 21. c3 {[%clk 0:02:09.5]} 21... c5 {[%clk 0:02:26.6]} 22.
cxd4 {[%clk 0:02:09.6]} 22... cxd4 {[%clk 0:02:28.2]} 23. Na3 {[%clk 0:02:09.9]}
23... Nf4 {[%clk 0:02:25.3]} 24. Kh1 {[%clk 0:01:59.4]} 24... Qg5 {[%clk
0:02:09.1]} 25. Rg1 {[%clk 0:01:47.2]} 25... Nxh3 {[%clk 0:01:40.7]} 26. Qxg5
{[%clk 0:01:44.4]} 26... Nxg5 {[%clk 0:01:41.7]} 27. Nb5 {[%clk 0:01:43.8]}
27... Rd8 {[%clk 0:01:37.3]} 28. Rd1 {[%clk 0:01:43.2]} 28... d3 {[%clk
0:01:37.9]} 29. f3 {[%clk 0:01:42.8]} 29... a6 {[%clk 0:01:34.4]} 30. Nc3 {[%clk
0:01:42.4]} 30... Ne6 {[%clk 0:01:35.1]} 31. Kg1 {[%clk 0:01:39.8]} 31... Nf4
{[%clk 0:01:15.8]} 32. Kf2 {[%clk 0:01:27]} 32... h5 {[%clk 0:00:58.8]} 33. g3
{[%clk 0:01:26.8]} 33... Ng6 {[%clk 0:00:59.9]} 34. Ke3 {[%clk 0:01:25.8]} 34...
Ne5 {[%clk 0:01:01.1]} 35. Ke4 {[%clk 0:01:21.9]} 35... Re8 {[%clk 0:00:53.9]}
36. b3 {[%clk 0:01:18]} 36... Ng4+ {[%clk 0:00:30.5]} 37. Kf4 {[%clk 0:01:16.4]}
37... Nf2 {[%clk 0:00:31.6]} 38. Rd2 {[%clk 0:01:16.9]} 38... Nh3+ {[%clk
0:00:32.4]} 0-1

[Event "*** Titled Tuesday Blitz"]
[Site "Chess.com"]
[Date "2019.06.04"]
[Round "2"]
[White "Ambitiousresolutions"]
[Black "BillieKimbah"]
[Result "1/2-1/2"]
[WhiteElo "2589"]
[BlackElo "2775"]
[TimeControl "180+2"]
[EndTime "13:22:36 PDT"]
[Termination "Game drawn by repetition"]

1. e4 {[%clk 0:03:01.9]} 1... e5 {[%clk 0:02:47.4]} 2. Nf3 {[%clk 0:03:01.7]}
2... Nc6 {[%clk 0:02:46.9]} 3. Bc4 {[%clk 0:03:03.1]} 3... Nf6 {[%clk
0:02:43.3]} 4. d3 {[%clk 0:03:03.3]} 4... Be7 {[%clk 0:02:44.2]} 5. O-O {[%clk
0:03:03.5]} 5... O-O {[%clk 0:02:44.9]} 6. Re1 {[%clk 0:03:04.3]} 6... d6 {[%clk
0:02:46.2]} 7. a4 {[%clk 0:03:05.8]} 7... Kh8 {[%clk 0:02:38.8]} 8. Nc3 {[%clk
0:02:58.3]} 8... Ng8 {[%clk 0:02:38.9]} 9. Nd5 {[%clk 0:02:53.9]} 9... f5 {[%clk
0:02:35.8]} 10. h3 {[%clk 0:02:52]} 10... fxe4 {[%clk 0:02:35.6]} 11. dxe4
{[%clk 0:02:53.9]} 11... Nf6 {[%clk 0:02:36.6]} 12. c3 {[%clk 0:02:41.4]} 12...
Be6 {[%clk 0:02:32.8]} 13. Ng5 {[%clk 0:02:11.2]} 13... Bg8 {[%clk 0:02:29.5]}
14. Nf3 {[%clk 0:01:58.1]} 14... Nxd5 {[%clk 0:02:28.8]} 15. Bxd5 {[%clk
0:02:00]} 15... Qd7 {[%clk 0:02:21.1]} 16. a5 {[%clk 0:01:54]} 16... a6 {[%clk
0:02:21.6]} 17. Bxg8 {[%clk 0:01:54.3]} 17... Rxg8 {[%clk 0:02:22.1]} 18. Be3
{[%clk 0:01:51.1]} 18... g5 {[%clk 0:02:14.1]} 19. Nh2 {[%clk 0:01:50.5]} 19...
Raf8 {[%clk 0:02:13.9]} 20. Qh5 {[%clk 0:01:46.4]} 20... Qe6 {[%clk 0:02:10.2]}
21. b4 {[%clk 0:01:38.9]} 21... Qc4 {[%clk 0:02:07.7]} 22. Bd2 {[%clk
0:01:35.9]} 22... Qf7 {[%clk 0:01:55.1]} 23. Qxf7 {[%clk 0:01:33.9]} 23... Rxf7
{[%clk 0:01:57]} 24. Ng4 {[%clk 0:01:32.8]} 24... Bf8 {[%clk 0:01:45.4]} 25. Ne3
{[%clk 0:01:31.5]} 25... Ne7 {[%clk 0:01:44.3]} 26. c4 {[%clk 0:01:30.7]} 26...
h5 {[%clk 0:01:45.3]} 27. f3 {[%clk 0:01:26.2]} 27... Bh6 {[%clk 0:01:45.9]} 28.
Nd5 {[%clk 0:01:21.6]} 28... Nxd5 {[%clk 0:01:43.2]} 29. cxd5 {[%clk 0:01:23.5]}
29... Kh7 {[%clk 0:01:44]} 30. Ra3 {[%clk 0:01:21.9]} 30... g4 {[%clk
0:01:42.7]} 31. Bxh6 {[%clk 0:01:22]} 31... Kxh6 {[%clk 0:01:44.6]} 32. hxg4
{[%clk 0:01:23.4]} 32... hxg4 {[%clk 0:01:45.3]} 33. Kf2 {[%clk 0:01:23.3]}
33... Kg6 {[%clk 0:01:24.3]} 34. Rh1 {[%clk 0:01:19.3]} 34... gxf3 {[%clk
0:01:03]} 35. gxf3 {[%clk 0:01:21.2]} 35... Rh7 {[%clk 0:00:56.1]} 36. Rxh7
{[%clk 0:01:17.4]} 36... Kxh7 {[%clk 0:00:57.3]} 37. Rc3 {[%clk 0:01:15.7]}
37... Rg7 {[%clk 0:00:58.6]} 38. Rb3 {[%clk 0:01:13]} 38... c6 {[%clk
0:00:51.7]} 39. dxc6 {[%clk 0:01:03.1]} 39... bxc6 {[%clk 0:00:53.6]} 40. Rc3
{[%clk 0:01:04.6]} 40... Rc7 {[%clk 0:00:54.5]} 41. Rd3 {[%clk 0:01:05.8]} 41...
Rd7 {[%clk 0:00:55.2]} 42. Rc3 {[%clk 0:01:07.1]} 42... Rc7 {[%clk 0:00:56.3]}
43. Rd3 {[%clk 0:01:08.3]} 43... Rd7 {[%clk 0:00:57.7]} 44. Rc3 {[%clk
0:01:08.2]} 44... Rc7 {[%clk 0:00:58.8]} 1/2-1/2

[Event "*** Titled Tuesday Blitz"]
[Site "Chess.com"]
[Date "2019.06.04"]
[Round "2"]
[White "GadimbayliA"]
[Black "Oleg_Papayan"]
[Result "1-0"]
[WhiteElo "2848"]
[BlackElo "2545"]
[TimeControl "180+2"]
[EndTime "13:22:36 PDT"]
[Termination "GadimbayliA won by resignation"]

1. e4 {[%clk 0:03:01.9]} 1... c6 {[%clk 0:03:00.4]} 2. Nf3 {[%clk 0:03:02.1]}
2... d5 {[%clk 0:03:01.9]} 3. exd5 {[%clk 0:03:04]} 3... cxd5 {[%clk 0:03:03.2]}
4. Ne5 {[%clk 0:03:05.5]} 4... a6 {[%clk 0:02:59.8]} 5. d4 {[%clk 0:03:06.3]}
5... Nf6 {[%clk 0:03:01.1]} 6. c3 {[%clk 0:03:07.2]} 6... Nbd7 {[%clk
0:03:02.1]} 7. Nd2 {[%clk 0:03:08.2]} 7... e6 {[%clk 0:03:01.6]} 8. Bd3 {[%clk
0:03:09.3]} 8... Nxe5 {[%clk 0:03:02.1]} 9. dxe5 {[%clk 0:03:10.3]} 9... Nd7
{[%clk 0:03:04]} 10. Nf3 {[%clk 0:03:11.7]} 10... Qc7 {[%clk 0:03:03.9]} 11. Bf4
{[%clk 0:03:12.5]} 11... Nc5 {[%clk 0:03:03.5]} 12. Bc2 {[%clk 0:03:13.1]} 12...
Bd7 {[%clk 0:03:04.6]} 13. O-O {[%clk 0:03:13.6]} 13... Be7 {[%clk 0:03:05.2]}
14. Re1 {[%clk 0:03:14.5]} 14... a5 {[%clk 0:03:02.1]} 15. Nd4 {[%clk
0:03:10.9]} 15... h6 {[%clk 0:03:01.6]} 16. Qf3 {[%clk 0:03:11.9]} 16... a4
{[%clk 0:02:54.4]} 17. Nf5 {[%clk 0:03:11]} 17... exf5 {[%clk 0:02:54]} 18. e6
{[%clk 0:03:12.2]} 18... Qc6 {[%clk 0:02:49.9]} 19. exd7+ {[%clk 0:03:13.1]}
19... Qxd7 {[%clk 0:02:51.8]} 20. Bxf5 {[%clk 0:01:31.7]} 20... Qxf5 {[%clk
0:02:53.7]} 21. Bd6 {[%clk 0:01:32.9]} 21... Qxf3 {[%clk 0:02:45.1]} 22. Rxe7+
{[%clk 0:01:33.3]} 22... Kd8 {[%clk 0:02:11.5]} 23. gxf3 {[%clk 0:01:35.2]}
23... Ne6 {[%clk 0:02:05.7]} 24. Rd1 {[%clk 0:01:14.7]} 24... Ra6 {[%clk
0:02:03.5]} 25. Rxb7 {[%clk 0:01:01.9]} 25... Rh7 {[%clk 0:00:51.8]} 26. Rxd5
{[%clk 0:00:56.6]} 26... Kc8 {[%clk 0:00:51.4]} 27. Rxf7 {[%clk 0:00:49.1]}
27... Ng5 {[%clk 0:00:49.8]} 28. Rc7+ {[%clk 0:00:49.5]} 28... Kd8 {[%clk
0:00:51.2]} 29. Bf4+ {[%clk 0:00:25.9]} 29... Ke8 {[%clk 0:00:51]} 30. Bxg5
{[%clk 0:00:26.6]} 30... hxg5 {[%clk 0:00:52.9]} 31. Rxg5 {[%clk 0:00:23.8]}
31... Rah6 {[%clk 0:00:51.9]} 32. Ra5 {[%clk 0:00:22.9]} 1-0

[Event "*** Titled Tuesday Blitz"]
[Site "Chess.com"]
[Date "2019.06.04"]
[Round "2"]
[White "vugarrasulov"]
[Black "volcanoexplorer"]
[Result "0-1"]
[WhiteElo "2764"]
[BlackElo "2596"]
[TimeControl "180+2"]
[EndTime "13:22:37 PDT"]
[Termination "volcanoexplorer won by resignation"]

1. e4 {[%clk 0:03:01.9]} 1... e5 {[%clk 0:03:00.8]} 2. Nf3 {[%clk 0:03:02.5]}
2... Nc6 {[%clk 0:03:02.3]} 3. Bb5 {[%clk 0:03:03.6]} 3... a6 {[%clk 0:03:03.4]}
4. Ba4 {[%clk 0:03:04.9]} 4... Nf6 {[%clk 0:03:04.5]} 5. O-O {[%clk 0:03:06.4]}
5... Be7 {[%clk 0:03:05.8]} 6. Re1 {[%clk 0:03:07.7]} 6... b5 {[%clk 0:03:07.2]}
7. Bb3 {[%clk 0:03:09.1]} 7... O-O {[%clk 0:03:08.9]} 8. c3 {[%clk 0:03:10.3]}
8... d5 {[%clk 0:03:10.2]} 9. exd5 {[%clk 0:03:10.3]} 9... Nxd5 {[%clk
0:03:12.1]} 10. Nxe5 {[%clk 0:03:11.6]} 10... Nxe5 {[%clk 0:03:14]} 11. Rxe5
{[%clk 0:03:13]} 11... c6 {[%clk 0:03:15.6]} 12. d3 {[%clk 0:03:14.5]} 12... Bd6
{[%clk 0:03:15.4]} 13. Re1 {[%clk 0:03:15.6]} 13... Bf5 {[%clk 0:03:16.5]} 14.
Nd2 {[%clk 0:03:08.9]} 14... Nf4 {[%clk 0:02:29.3]} 15. Ne4 {[%clk 0:03:05.9]}
15... Nxd3 {[%clk 0:02:30.1]} 16. Bg5 {[%clk 0:02:48.2]} 16... Qd7 {[%clk
0:02:08.2]} 17. Nxd6 {[%clk 0:02:44.1]} 17... Qxd6 {[%clk 0:02:09]} 18. Be7
{[%clk 0:02:41.1]} 18... Qf4 {[%clk 0:01:36.6]} 19. Re2 {[%clk 0:02:17.3]} 19...
Rfe8 {[%clk 0:01:20.6]} 20. g3 {[%clk 0:02:02.8]} 20... Qf3 {[%clk 0:00:58.8]}
21. Rd2 {[%clk 0:01:06.9]} 21... Qxd1+ {[%clk 0:00:44.1]} 22. Raxd1 {[%clk
0:01:08.8]} 22... Rxe7 {[%clk 0:00:42.8]} 23. Rxd3 {[%clk 0:01:09.7]} 23... Bxd3
{[%clk 0:00:43.1]} 24. Rxd3 {[%clk 0:01:11.6]} 24... Kf8 {[%clk 0:00:38]} 25.
Rd6 {[%clk 0:01:10.8]} 25... Rc8 {[%clk 0:00:38.7]} 26. Kg2 {[%clk 0:01:10]}
26... Ke8 {[%clk 0:00:36.1]} 27. Rd4 {[%clk 0:01:10.8]} 27... Rd8 {[%clk
0:00:33.8]} 28. Rh4 {[%clk 0:01:10.1]} 28... h6 {[%clk 0:00:34.9]} 29. Rg4
{[%clk 0:01:05.7]} 29... g6 {[%clk 0:00:35.7]} 30. Rh4 {[%clk 0:01:05.3]} 30...
h5 {[%clk 0:00:32.5]} 31. Rf4 {[%clk 0:01:06.2]} 31... Rd2 {[%clk 0:00:32.9]}
32. Rf6 {[%clk 0:01:06.4]} 32... Rc7 {[%clk 0:00:30.5]} 33. h3 {[%clk
0:01:00.6]} 33... a5 {[%clk 0:00:27.7]} 0-1

[Event "*** Titled Tuesday Blitz"]
[Site "Chess.com"]
[Date "2019.06.04"]
[Round "2"]
[White "MishkaFighter"]
[Black "wonderfultime"]
[Result "0-1"]
[WhiteElo "2362"]
[BlackElo "3014"]
[TimeControl "180+2"]
[EndTime "13:22:41 PDT"]
[Termination "wonderfultime won by resignation"]

1. d4 {[%clk 0:03:01.9]} 1... d5 {[%clk 0:02:59.6]} 2. c4 {[%clk 0:03:02.4]}
2... c6 {[%clk 0:03:00.8]} 3. Nf3 {[%clk 0:03:02.7]} 3... Nf6 {[%clk 0:03:02]}
4. e3 {[%clk 0:03:03.5]} 4... Bf5 {[%clk 0:03:03]} 5. Nc3 {[%clk 0:03:03.4]}
5... e6 {[%clk 0:03:04.4]} 6. Nh4 {[%clk 0:03:03.2]} 6... Be4 {[%clk 0:03:05.6]}
7. f3 {[%clk 0:03:03.8]} 7... Bg6 {[%clk 0:03:06.9]} 8. Qb3 {[%clk 0:03:05.5]}
8... Qc7 {[%clk 0:03:08.2]} 9. Bd2 {[%clk 0:03:02.1]} 9... Be7 {[%clk
0:03:09.6]} 10. Nxg6 {[%clk 0:02:55.4]} 10... hxg6 {[%clk 0:03:10.5]} 11. Bd3
{[%clk 0:02:52.1]} 11... Nbd7 {[%clk 0:03:10.1]} 12. cxd5 {[%clk 0:02:41.2]}
12... cxd5 {[%clk 0:02:27]} 13. O-O-O {[%clk 0:02:37.1]} 13... Qb6 {[%clk
0:02:17.2]} 14. Qa4 {[%clk 0:02:27.8]} 14... a6 {[%clk 0:02:14.5]} 15. e4 {[%clk
0:02:19.3]} 15... Qb4 {[%clk 0:01:59.2]} 16. Qxb4 {[%clk 0:01:42]} 16... Bxb4
{[%clk 0:01:59.9]} 17. exd5 {[%clk 0:01:39.2]} 17... Bxc3 {[%clk 0:01:53.1]} 18.
bxc3 {[%clk 0:01:38.6]} 18... Nxd5 {[%clk 0:01:54.7]} 19. c4 {[%clk 0:01:37.2]}
19... Rc8 {[%clk 0:01:55.9]} 20. Kb2 {[%clk 0:01:32.4]} 20... Ne7 {[%clk
0:01:54.2]} 21. h3 {[%clk 0:01:10]} 21... Nf5 {[%clk 0:01:49.7]} 22. d5 {[%clk
0:00:57.6]} 22... Nc5 {[%clk 0:01:18.2]} 23. Bc2 {[%clk 0:00:39.4]} 23... Nd6
{[%clk 0:01:11.6]} 24. dxe6 {[%clk 0:00:17.4]} 24... Nxc4+ {[%clk 0:01:12.6]}
25. Kc3 {[%clk 0:00:17]} 25... Nxe6 {[%clk 0:01:14]} 26. Be4 {[%clk 0:00:08.3]}
26... Ne3+ {[%clk 0:01:12.1]} 27. Kd3 {[%clk 0:00:09.7]} 27... Nxd1 {[%clk
0:01:13.3]} 28. Rxd1 {[%clk 0:00:11.6]} 28... O-O {[%clk 0:01:14.6]} 29. Ke2
{[%clk 0:00:11.7]} 29... Rfe8 {[%clk 0:01:14.3]} 30. Kf2 {[%clk 0:00:12.2]}
30... Nc5 {[%clk 0:01:15.6]} 31. Bd5 {[%clk 0:00:12.3]} 31... Nd3+ {[%clk
0:01:13.9]} 32. Kg3 {[%clk 0:00:13.2]} 32... Rcd8 {[%clk 0:01:15.8]} 33. Bxb7
{[%clk 0:00:10.7]} 33... Nb2 {[%clk 0:01:16.9]} 0-1

[Event "*** Titled Tuesday Blitz"]
[Site "Chess.com"]
[Date "2019.06.04"]
[Round "2"]
[White "spicycaterpillar"]
[Black "Tacticalon"]
[Result "0-1"]
[WhiteElo "2828"]
[BlackElo "2686"]
[TimeControl "180+2"]
[EndTime "13:22:43 PDT"]
[Termination "Tacticalon won on time"]

1. e4 {[%clk 0:03:01.9]} 1... c6 {[%clk 0:03:00.7]} 2. d4 {[%clk 0:03:02.7]}
2... d5 {[%clk 0:03:02]} 3. e5 {[%clk 0:03:04.5]} 3... Bf5 {[%clk 0:03:01.9]} 4.
Nf3 {[%clk 0:03:06.3]} 4... e6 {[%clk 0:03:02.7]} 5. Be2 {[%clk 0:03:08]} 5...
Nd7 {[%clk 0:03:03.4]} 6. c3 {[%clk 0:03:09.6]} 6... Ne7 {[%clk 0:03:04.7]} 7.
a4 {[%clk 0:03:11.1]} 7... c5 {[%clk 0:03:05.4]} 8. Na3 {[%clk 0:03:09.8]} 8...
Nc6 {[%clk 0:03:06.2]} 9. O-O {[%clk 0:03:06.8]} 9... Rc8 {[%clk 0:03:07.2]} 10.
Be3 {[%clk 0:03:01.8]} 10... Be7 {[%clk 0:03:00.4]} 11. c4 {[%clk 0:03:03.1]}
11... cxd4 {[%clk 0:02:56.6]} 12. Nxd4 {[%clk 0:03:05]} 12... Nxd4 {[%clk
0:02:56.9]} 13. Bxd4 {[%clk 0:03:06.8]} 13... Bxa3 {[%clk 0:02:46.9]} 14. Rxa3
{[%clk 0:03:08.7]} 14... dxc4 {[%clk 0:02:48.2]} 15. Bxa7 {[%clk 0:02:54.4]}
15... Nxe5 {[%clk 0:02:45]} 16. Bd4 {[%clk 0:02:51.1]} 16... Nd3 {[%clk
0:02:36.2]} 17. Bxg7 {[%clk 0:02:43.6]} 17... Rg8 {[%clk 0:02:36.7]} 18. Bc3
{[%clk 0:02:03.8]} 18... Bh3 {[%clk 0:02:24.3]} 19. Bf3 {[%clk 0:01:54.9]} 19...
Qg5 {[%clk 0:02:23.5]} 20. Bd2 {[%clk 0:01:10.5]} 20... Qg7 {[%clk 0:01:21.9]}
21. Bc3 {[%clk 0:01:09.3]} 21... Qg5 {[%clk 0:01:15.3]} 22. Bd2 {[%clk
0:01:09.7]} 22... Qg6 {[%clk 0:01:09.4]} 23. g3 {[%clk 0:01:08.4]} 23... Bxf1
{[%clk 0:01:07.4]} 24. Qxf1 {[%clk 0:01:04.6]} 24... Qf6 {[%clk 0:01:08.1]} 25.
Bxb7 {[%clk 0:01:02]} 25... Qxb2 {[%clk 0:01:07]} 26. Bxc8 {[%clk 0:00:15.5]}
26... Qxa3 {[%clk 0:01:07.3]} 27. Be3 {[%clk 0:00:04]} 27... Qxa4 {[%clk
0:01:02.1]} 28. h4 {[%clk 0:00:05.4]} 28... Ke7 {[%clk 0:00:57.8]} 29. Bb7
{[%clk 0:00:06.3]} 29... Rb8 {[%clk 0:00:58.3]} 30. Be4 {[%clk 0:00:05.9]} 30...
Qc2 {[%clk 0:00:59.1]} 0-1

[Event "*** Titled Tuesday Blitz"]
[Site "Chess.com"]
[Date "2019.06.04"]
[Round "2"]
[White "witcher8"]
[Black "Zq1"]
[Result "0-1"]
[WhiteElo "2322"]
[BlackElo "2505"]
[TimeControl "180+2"]
[EndTime "13:22:48 PDT"]
[Termination "Zq1 won by checkmate"]

1. e4 {[%clk 0:03:01.9]} 1... c5 {[%clk 0:03:00.5]} 2. Nf3 {[%clk 0:03:02.5]}
2... e6 {[%clk 0:03:01.5]} 3. d4 {[%clk 0:02:56.4]} 3... cxd4 {[%clk 0:03:02.2]}
4. Nxd4 {[%clk 0:02:58.3]} 4... Nc6 {[%clk 0:03:03.1]} 5. Nc3 {[%clk 0:02:51.3]}
5... Qc7 {[%clk 0:03:03.5]} 6. f4 {[%clk 0:02:12]} 6... a6 {[%clk 0:02:49.4]} 7.
Nxc6 {[%clk 0:02:11.7]} 7... Qxc6 {[%clk 0:02:47.4]} 8. Bd3 {[%clk 0:02:10.8]}
8... b5 {[%clk 0:02:47.8]} 9. O-O {[%clk 0:02:08.7]} 9... Bb7 {[%clk 0:02:48.3]}
10. a3 {[%clk 0:02:01.2]} 10... Nf6 {[%clk 0:02:47.7]} 11. Qe2 {[%clk
0:01:53.4]} 11... b4 {[%clk 0:02:44.8]} 12. axb4 {[%clk 0:01:53.8]} 12... Bxb4
{[%clk 0:02:44.6]} 13. e5 {[%clk 0:01:44.3]} 13... Bxc3 {[%clk 0:02:41.4]} 14.
bxc3 {[%clk 0:01:45.4]} 14... Nd5 {[%clk 0:02:31.2]} 15. c4 {[%clk 0:01:41.1]}
15... Nb4 {[%clk 0:02:20.4]} 16. Ba3 {[%clk 0:01:41.5]} 16... a5 {[%clk
0:02:17.2]} 17. Rfe1 {[%clk 0:01:41.9]} 17... O-O {[%clk 0:02:13.3]} 18. Rad1
{[%clk 0:01:00.9]} 18... f6 {[%clk 0:02:09.7]} 19. Rd2 {[%clk 0:00:53.2]} 19...
fxe5 {[%clk 0:02:08.1]} 20. Qxe5 {[%clk 0:00:51.6]} 20... Rf6 {[%clk 0:01:50.5]}
21. Be4 {[%clk 0:00:49.6]} 21... Qc8 {[%clk 0:01:48.4]} 22. Bb2 {[%clk
0:00:35.5]} 22... Bxe4 {[%clk 0:01:36.4]} 23. Qxe4 {[%clk 0:00:36.7]} 23... Rf7
{[%clk 0:01:28.2]} 24. Re3 {[%clk 0:00:31.9]} 24... Qc6 {[%clk 0:01:16.1]} 25.
Qd4 {[%clk 0:00:32.9]} 25... Rc8 {[%clk 0:01:05.5]} 26. c3 {[%clk 0:00:13.3]}
26... Na6 {[%clk 0:01:02.5]} 27. Ba3 {[%clk 0:00:09.4]} 27... Nc5 {[%clk
0:00:59.6]} 28. Kh1 {[%clk 0:00:08.5]} 28... Nb3 {[%clk 0:00:57.5]} 29. Qd3
{[%clk 0:00:03.7]} 29... Nxd2 {[%clk 0:00:56.6]} 30. Qxd2 {[%clk 0:00:05.6]}
30... Qxc4 {[%clk 0:00:55.4]} 31. Bd6 {[%clk 0:00:06.4]} 31... Qf1# {[%clk
0:00:55.4]} 0-1

[Event "*** Titled Tuesday Blitz"]
[Site "Chess.com"]
[Date "2019.06.04"]
[Round "2"]
[White "pedromartinez91"]
[Black "DamianoLew95"]
[Result "0-1"]
[WhiteElo "2413"]
[BlackElo "2495"]
[TimeControl "180+2"]
[EndTime "13:22:52 PDT"]
[Termination "DamianoLew95 won by checkmate"]

1. e4 {[%clk 0:03:01.9]} 1... c5 {[%clk 0:02:46.3]} 2. Nf3 {[%clk 0:03:02.5]}
2... d6 {[%clk 0:02:46.7]} 3. Bb5+ {[%clk 0:03:02.9]} 3... Nd7 {[%clk
0:02:43.9]} 4. d4 {[%clk 0:03:02.6]} 4... cxd4 {[%clk 0:02:40.9]} 5. Qxd4 {[%clk
0:03:04.5]} 5... a6 {[%clk 0:02:40.3]} 6. Bxd7+ {[%clk 0:03:04.5]} 6... Bxd7
{[%clk 0:02:41.3]} 7. c4 {[%clk 0:03:06.4]} 7... Nf6 {[%clk 0:02:41.2]} 8. Nc3
{[%clk 0:03:07.1]} 8... h6 {[%clk 0:02:37.6]} 9. O-O {[%clk 0:03:07.4]} 9... e6
{[%clk 0:02:37.9]} 10. Qd3 {[%clk 0:03:05.2]} 10... Qc7 {[%clk 0:02:30.1]} 11.
a4 {[%clk 0:02:56.5]} 11... Be7 {[%clk 0:02:30.6]} 12. b3 {[%clk 0:02:57.5]}
12... O-O {[%clk 0:02:23.6]} 13. Rd1 {[%clk 0:02:53]} 13... Rfd8 {[%clk
0:02:20.3]} 14. Ba3 {[%clk 0:02:52.8]} 14... Be8 {[%clk 0:02:16.4]} 15. Nd4
{[%clk 0:02:47.3]} 15... Rac8 {[%clk 0:02:09.3]} 16. Rac1 {[%clk 0:02:47.7]}
16... Bf8 {[%clk 0:01:59.7]} 17. Qe2 {[%clk 0:02:32.4]} 17... Qa5 {[%clk
0:01:54.6]} 18. h3 {[%clk 0:02:14.9]} 18... Qe5 {[%clk 0:01:53.5]} 19. Qe3
{[%clk 0:02:09.5]} 19... Qg5 {[%clk 0:01:52.1]} 20. f4 {[%clk 0:02:04.3]} 20...
Qa5 {[%clk 0:01:46]} 21. Nf3 {[%clk 0:02:03.4]} 21... Nd7 {[%clk 0:01:37]} 22.
Bxd6 {[%clk 0:02:00]} 22... Bxd6 {[%clk 0:01:34.3]} 23. Rxd6 {[%clk 0:02:01.9]}
23... Nc5 {[%clk 0:01:34]} 24. Rxd8 {[%clk 0:02:00.1]} 24... Rxd8 {[%clk
0:01:35.9]} 25. Nd4 {[%clk 0:01:14]} 25... Rxd4 {[%clk 0:01:35.5]} 26. Qxd4
{[%clk 0:01:12.1]} 26... Nxb3 {[%clk 0:01:36.5]} 27. Qd1 {[%clk 0:01:05.9]}
27... Nxc1 {[%clk 0:01:33.2]} 28. Qxc1 {[%clk 0:01:07.8]} 28... Qc5+ {[%clk
0:01:34.2]} 29. Kh2 {[%clk 0:01:06.6]} 29... Qxc4 {[%clk 0:01:34.8]} 30. Qb2
{[%clk 0:01:07.8]} 30... Bc6 {[%clk 0:01:33.6]} 31. e5 {[%clk 0:00:40.6]} 31...
Qxf4+ {[%clk 0:01:32.4]} 32. Kg1 {[%clk 0:00:37.8]} 32... Qxe5 {[%clk
0:01:32.4]} 33. Qb4 {[%clk 0:00:38.8]} 33... g6 {[%clk 0:01:28.9]} 34. a5 {[%clk
0:00:36.9]} 34... Qe3+ {[%clk 0:01:26]} 35. Kh2 {[%clk 0:00:37.5]} 35... Qd2
{[%clk 0:01:15.1]} 36. Kg3 {[%clk 0:00:36.4]} 36... g5 {[%clk 0:01:06.1]} 37.
Ne4 {[%clk 0:00:22.6]} 37... Qf4# {[%clk 0:01:06.2]} 0-1